[Event "GER-chW 2019"]
[Site "Magdeburg"]
[Date "2019.06.01"]
[Round "9.3"]
[White "Zimmer, Elke"]
[Black "Koehler, Inken"]
[Result "1/2-1/2"]
[ECO "B00"]
[WhiteElo "1926"]
[BlackElo "1979"]
[Annotator "NA"]
[PlyCount "131"]
[EventDate "2019.05.26"]
[EventType "tourn"]
[EventCountry "GER"]
[SourceTitle "playchess.com"]
[Source "ChessBase"]
[SourceQuality "1"]
[TimeControl "40/5400+30:1800+30"]

1. e4 {[%emt 0:00:00]} d6 {[%emt 0:00:00]} 2. Bc4 {[%emt 0:00:03]} Nf6 {[%emt 0:00:00]} 3. d3 {[%emt 0:01:17]} e5 {[%emt 0:00:13]} 4. Ne2 {[%emt 0:00:23]} (4. Nf3 Be7 5. O-O O-O 6. Re1 c6 7. c3 Bg4 8. h3 Bh5 9. Bb3 Nbd7 10. Nbd2 Re8 11. Nf1 Bf8 12. Ng3 Bg6 13. Nh4 Nc5 14. Bc2 d5 15. Qf3 dxe4 16. dxe4 Ne6 17. Nhf5 Qc7 18. Nh6+ {½-½ (54) Wang,H (2730)-Taher,Y (2454) Makati 2018}) 4... Be7 {[%emt 0:00:41]} 5. c3 {[%emt 0:00:17]} O-O {[%emt 0:00:46]} 6. h3 {[%emt 0:00:36] C24: Bishop's Opening: 2...Nf6} c6 $146 {[%emt 0:00:40]} ({Predecessor:} 6... d5 7. exd5 Nxd5 8. O-O c6 9. d4 e4 10. Bb3 Bg5 {1-0 (35) Petric,M (1891)-Kubicka,S (1998) Austria 2000}) 7. Bb3 {[%emt 0:00:40]} Na6 {[%emt 0:04:43]} 8. Nd2 {[%emt 0:06:42]} Nc7 {[%emt 0:03:18]} 9. Ng3 {[%emt 0:00:52]} Be6 {[%emt 0:02:07]} 10. O-O {[%emt 0:01:34]} d5 {[%emt 0:04:13]} 11. Nf5 {[%emt 0:03:55]} Bc5 {[%emt 0:08:59]} 12. Bc2 {[%emt 0:03:34]} Bb6 {[%emt 0:06:51]} 13. Qf3 {[%emt 0:12:00]} Qd7 {[%emt 0:08:33]} 14. Nb3 {[%emt 0:14:41]} Bxf5 {[%emt 0:11:17]} 15. exf5 {[%emt 0:00:16]} Rfe8 {[%emt 0:00:10]} 16. Bg5 {[%emt 0:07:53]} Qd6 {[%emt 0:16:24]} 17. Qg3 {[%emt 0:05:17]} h6 {[%emt 0:04:08]} 18. Bd2 {[%emt 0:06:04]} Rad8 {[%emt 0:06:06]} 19. d4 {[%emt 0:00:49]} Nh7 {[%emt 0:01:01]} 20. a4 {[%emt 0:02:51]} Na6 {[%emt 0:01:52]} 21. dxe5 {[%emt 0:04:18]} Qxe5 {[%emt 0:00:28]} 22. Bf4 {[%emt 0:00:53]} Qf6 {[%emt 0:00:26]} 23. a5 {[%emt 0:10:18]} Bc5 {[%emt 0:00:47]} 24. Bd3 {[%emt 0:01:33]} Bf8 {[%emt 0:02:02]} 25. Rfe1 {[%emt 0:03:09]} Nc5 {[%emt 0:02:07]} 26. Nxc5 {[%emt 0:00:06]} Bxc5 {[%emt 0:00:01]} 27. h4 {[%emt 0:00:38]} Bf8 {[%emt 0:04:56]} 28. Be5 {[%emt 0:01:47]} Rxe5 {[%emt 0:00:34]} 29. Qxe5 {[%emt 0:00:06]} Qxh4 {[%emt 0:00:12]} 30. Qg3 {[%emt 0:01:29]} Qf6 {[%emt 0:01:52]} 31. Re2 {[%emt 0:00:32]} Bd6 {[%emt 0:00:43]} 32. Qg4 {[%emt 0:00:16]} Bc7 {[%emt 0:00:54]} 33. a6 {[%emt 0:00:35]} Qd6 {[%emt 0:02:59]} 34. Qh4 {[%emt 0:01:12]} b6 {[%emt 0:01:13]} 35. Rae1 {[%emt 0:00:20]} Nf6 {[%emt 0:01:10]} 36. g3 {[%emt 0:00:15]} Kf8 {[%emt 0:01:24]} 37. Qa4 {[%emt 0:01:26]} Nd7 {[%emt 0:01:55]} 38. Qb4 {[%emt 0:02:17]} Nc5 {[%emt 0:00:47]} 39. Bc2 {[%emt 0:01:34]} Qf6 {[%emt 0:00:45]} 40. Kg2 {[%emt 0:02:04]} Bd6 {[%emt 0:00:49]} 41. Qh4 {[%emt 0:31:10]} Qxh4 {[%emt 0:05:17]} 42. gxh4 {[%emt 0:00:00]} Bb8 {[%emt 0:00:43]} 43. Ra1 {[%emt 0:00:00]} Re8 {[%emt 0:00:37]} 44. Kf3 {[%emt 0:00:00]} Rxe2 $11 {[%emt 0:01:31]} 45. Kxe2 {[%emt 0:00:00]} Ke7 {[%emt 0:00:47]} 46. b4 {[%emt 0:00:00]} Nd7 {[%emt 0:00:35]} 47. Bd3 {[%emt 0:00:00]} b5 {[%emt 0:02:45]} 48. Re1 {[%emt 0:00:00]} Be5 {[%emt 0:02:00]} 49. Kd2 {[%emt 0:00:00]} Kd8 {[%emt 0:00:20]} 50. Kc2 {[%emt 0:00:00]} Bf6 {[%emt 0:00:46]} 51. h5 {[%emt 0:00:00]} Nb6 {[%emt 0:01:55]} 52. Rd1 {[%emt 0:00:00]} Kc7 {[%emt 0:02:03]} 53. Ra1 {[%emt 0:00:00]} Nc8 {[%emt 0:01:41]} 54. Ra5 {[%emt 0:00:00]} Nd6 {[%emt 0:00:48]} 55. f3 {[%emt 0:00:00]} Kb6 {[%emt 0:01:39]} 56. Ra1 {[%emt 0:00:00]} Kc7 {[%emt 0:02:31]} 57. Kd2 {[%emt 0:00:00]} Kd7 {[%emt 0:00:28]} 58. Rd1 {[%emt 0:00:20]} Bg5+ {[%emt 0:01:10]} 59. Kc2 {[%emt 0:00:05]} Ke7 {[%emt 0:00:51]} 60. f6+ {[%emt 0:01:09]} Bxf6 {[%emt 0:01:44]} 61. Re1+ {[%emt 0:00:49]} Kd7 {[%emt 0:00:17]} 62. Bh7 {[%emt 0:00:27]} Kc7 {[%emt 0:01:24]} 63. Ra1 {[%emt 0:01:07]} Bg5 {[%emt 0:02:57]} 64. Bg8 {[%emt 0:00:20]} Kd7 {[%emt 0:00:31]} 65. Rg1 {[%emt 0:00:12]} Ke7 {[%emt 0:01:44]} 66. Re1+ {[%emt 0:00:17]} 1/2-1/2

[Event "GER-chW 2019"]
[Site "Magdeburg"]
[Date "2019.06.01"]
[Round "9.4"]
[White "Mehling, Katharina"]
[Black "Perez Celis, Alba"]
[Result "1-0"]
[ECO "D45"]
[WhiteElo "1974"]
[BlackElo "1822"]
[Annotator "NA"]
[PlyCount "101"]
[EventDate "2019.05.26"]
[EventType "tourn"]
[EventCountry "GER"]
[SourceTitle "playchess.com"]
[Source "ChessBase"]
[SourceQuality "1"]
[TimeControl "40/5400+30:1800+30"]

1. d4 {[%emt 0:00:00]} d5 {[%emt 0:02:54]} 2. c4 {[%emt 0:03:21]} c6 {[%emt 0:00:11]} 3. Nf3 {[%emt 0:00:07]} Nf6 {[%emt 0:00:13]} 4. Nc3 {[%emt 0:00:26]} e6 {[%emt 0:02:20]} 5. e3 {[%emt 0:00:21]} Be7 {[%emt 0:01:34]} 6. Bd3 {[%emt 0:00:25]} O-O {[%emt 0:02:45]} 7. O-O {[%emt 0:00:19]} Nbd7 {[%emt 0:00:23]} 8. b3 {[%emt 0:02:58]} a6 {[%emt 0:12:14]} 9. Bb2 {[%emt 0:10:35] D46: Semi-Slav: 5 e3 Nbd7 6 Bd3, Black avoids the Meran} b5 {[%emt 0:11:11]} (9... b6 10. Qe2 Bb7 11. Rad1 c5 12. cxd5 exd5 13. Bf5 Re8 14. dxc5 bxc5 15. Qc2 Nb6 16. Ne2 g6 {1-0 (45) Ivanisevic,I (2645)-Pikula,D (2525) Vrnjacka Banja 2012}) 10. Qc2 {[%emt 0:04:15]} Bb7 {[%emt 0:10:14]} 11. a3 {[%emt 0:07:17]} bxc4 {[%emt 0:07:52]} 12. bxc4 {[%emt 0:01:40]} dxc4 {[%emt 0:01:57]} 13. Bxc4 {[%emt 0:01:18]} c5 {[%emt 0:01:25]} 14. Rad1 $146 {[%emt 0:02:31]} ({Predecessor:} 14. Rfd1 Qc7 15. d5 Nb6 16. Ne4 Nxe4 17. Qxe4 Nxc4 18. Qxc4 exd5 {1-0 (47) Panjwani,R (2401)-Haessel,D (2207) Calgary 2010}) 14... Bxf3 {[%emt 0:02:45]} 15. gxf3 {[%emt 0:00:10]} cxd4 {[%emt 0:00:24]} 16. Rxd4 {[%emt 0:00:47]} Qc7 {[%emt 0:01:12]} 17. Bd3 {[%emt 0:08:09]} Bd6 {[%emt 0:02:41]} 18. Rd1 {[%emt 0:08:29]} Bxh2+ {[%emt 0:01:55] [#]} 19. Kg2 $1 {[%emt 0:02:35]} Ne5 $18 {[%emt 0:00:03]} 20. Be2 {[%emt 0:30:08]} Nc6 {[%emt 0:11:05]} 21. Rc4 {[%emt 0:00:54]} Be5 {[%emt 0:07:51]} 22. f4 {[%emt 0:00:56]} Bxc3 {[%emt 0:01:06]} 23. Qxc3 {[%emt 0:00:38]} Rac8 {[%emt 0:00:35]} 24. Bf3 {[%emt 0:01:21]} Qb8 {[%emt 0:11:52]} 25. Bxc6 {[%emt 0:01:29]} Rc7 {[%emt 0:00:02]} 26. Rc1 {[%emt 0:01:36]} Rfc8 {[%emt 0:01:23]} 27. Qb4 {[%emt 0:01:15]} Qxb4 {[%emt 0:04:27]} 28. axb4 {[%emt 0:00:01]} h5 {[%emt 0:00:24]} 29. Be5 {[%emt 0:01:31]} Ra7 {[%emt 0:00:33]} 30. Rc5 {[%emt 0:01:41]} Ng4 {[%emt 0:00:19]} 31. Bd4 {[%emt 0:01:14]} e5 {[%emt 0:01:00]} 32. fxe5 {[%emt 0:00:43]} g5 {[%emt 0:00:28]} 33. Bf3 {[%emt 0:00:59]} Re8 {[%emt 0:00:27]} 34. Rc8 {[%emt 0:00:11]} Rae7 {[%emt 0:00:11]} 35. Rxe8+ {[%emt 0:00:09]} Rxe8 {[%emt 0:00:10]} 36. Bxg4 {[%emt 0:00:09]} hxg4 {[%emt 0:00:04]} 37. Rc6 {[%emt 0:00:52]} Ra8 {[%emt 0:00:07]} 38. Kg3 {[%emt 0:01:00]} Rb8 {[%emt 0:01:50]} 39. Bc5 {[%emt 0:00:44]} Rd8 {[%emt 0:00:50]} 40. Rxa6 {[%emt 0:00:48]} Rd5 {[%emt 0:00:01]} 41. Bd6 {[%emt 0:30:28]} Kg7 {[%emt 0:30:33]} 42. Kxg4 {[%emt 0:00:40]} Rd2 {[%emt 0:00:43]} 43. Kg3 {[%emt 0:00:39]} Kg6 {[%emt 0:00:00]} 44. b5 {[%emt 0:00:00]} Kf5 {[%emt 0:00:00]} 45. b6 {[%emt 0:00:00]} Rb2 {[%emt 0:00:00]} 46. Bc7 {[%emt 0:00:00]} Rb1 {[%emt 0:00:00]} 47. f3 {[%emt 0:00:00]} g4 {[%emt 0:00:00]} 48. e4+ {[%emt 0:00:00]} Kg5 {[%emt 0:00:00]} 49. Bd8+ {[%emt 0:00:00]} Kg6 {[%emt 0:00:00]} 50. b7+ {[%emt 0:00:00]} Kh7 {[%emt 0:00:00]} 51. Bb6 {[%emt 0:00:00]} 1-0

[Event "GER-chW 2019"]
[Site "Magdeburg"]
[Date "2019.06.01"]
[Round "9.5"]
[White "Erofeev, Anastasia"]
[Black "Von Herman, Brigitte"]
[Result "0-1"]
[ECO "E45"]
[WhiteElo "2003"]
[BlackElo "2064"]
[Annotator "NA"]
[PlyCount "54"]
[EventDate "2019.05.26"]
[EventType "tourn"]
[EventCountry "GER"]
[SourceTitle "playchess.com"]
[Source "ChessBase"]
[SourceQuality "1"]
[TimeControl "40/5400+30:1800+30"]

1. d4 {[%emt 0:00:00]} Nf6 {[%emt 0:00:00]} 2. c4 {[%emt 0:00:00]} e6 {[%emt 0:00:00]} 3. Nc3 {[%emt 0:00:00]} Bb4 {[%emt 0:00:00]} 4. e3 {[%emt 0:00:21]} b6 {[%emt 0:01:36]} 5. Nge2 {[%emt 0:04:07]} Ba6 {[%emt 0:01:07]} 6. Nf4 {[%emt 0:03:50]} O-O {[%emt 0:15:39]} 7. Bd3 {[%emt 0:11:31]} Bxc3+ {[%emt 0:03:08]} 8. bxc3 {[%emt 0:00:05]} Nc6 {[%emt 0:04:48]} 9. O-O {[%emt 0:04:34]} d6 {[%emt 0:06:15]} 10. e4 $11 {[%emt 0:15:24]} e5 {[%emt 0:12:07]} 11. Nd5 {[%emt 0:05:01]} Nd7 {[%emt 0:05:24]} 12. Qg4 {[%emt 0:05:31]} f6 {[%emt 0:00:26]} 13. Be3 {[%emt 0:03:10]} Na5 {[%emt 0:01:30]} 14. Qe2 {[%emt 0:04:04]} c5 {[%emt 0:05:03]} 15. Rfe1 {[%emt 0:06:11]} Rc8 {[%emt 0:00:50]} 16. Rac1 {[%emt 0:00:38]} Rf7 {[%emt 0:02:01]} 17. f4 {[%emt 0:02:15]} Qe8 {[%emt 0:03:28]} 18. dxe5 {[%emt 0:07:54]} dxe5 {[%emt 0:01:53]} 19. f5 {[%emt 0:02:51]} Nf8 {[%emt 0:04:38]} 20. Bf2 {[%emt 0:01:55]} Qa4 {[%emt 0:00:59]} 21. Ne3 {[%emt 0:00:58]} Rd8 {[%emt 0:00:34]} 22. Bc2 {[%emt 0:05:19]} Qa3 {[%emt 0:08:09]} 23. Bd3 {[%emt 0:02:42]} Rfd7 {[%emt 0:01:13]} 24. Nd5 {[%emt 0:02:13]} Qa4 {[%emt 0:01:01]} 25. Red1 {[%emt 0:03:45]} Bxc4 {[%emt 0:01:48]} 26. Bxc4 {[%emt 0:01:13]} Qxc4 {[%emt 0:00:36]} 27. Qg4 {[%emt 0:01:03]} Rxd5 {[%emt 0:01:54]} 0-1

[Event "GER-chW 2019"]
[Site "Magdeburg"]
[Date "2019.06.01"]
[Round "9.6"]
[White "Braun, Kristin"]
[Black "Schmidt, Jade"]
[Result "1/2-1/2"]
[ECO "D05"]
[WhiteElo "1895"]
[BlackElo "2062"]
[Annotator "NA"]
[PlyCount "75"]
[EventDate "2019.05.26"]
[EventType "tourn"]
[EventCountry "GER"]
[SourceTitle "playchess.com"]
[Source "ChessBase"]
[SourceQuality "1"]
[TimeControl "40/5400+30:1800+30"]

1. d4 {[%emt 0:00:00]} d5 {[%emt 0:00:00]} 2. e3 {[%emt 0:00:00]} Nf6 {[%emt 0:02:02]} 3. Bd3 {[%emt 0:00:00]} g6 {[%emt 0:00:24]} 4. Nd2 {[%emt 0:02:24]} Bg7 {[%emt 0:00:26]} 5. f4 {[%emt 0:05:40]} Bf5 {[%emt 0:08:48]} 6. Be2 {[%emt 0:05:23]} h5 {[%emt 0:02:22]} 7. Ngf3 {[%emt 0:03:55]} Ng4 {[%emt 0:04:28]} 8. Nf1 {[%emt 0:01:32]} Nd7 {[%emt 0:12:28]} 9. Ng3 {[%emt 0:06:58]} Nh6 {[%emt 0:13:41]} 10. Nxf5 {[%emt 0:06:36]} Nxf5 $11 {[%emt 0:01:11]} 11. c4 {[%emt 0:05:20]} c6 {[%emt 0:09:16]} 12. cxd5 {[%emt 0:04:38]} cxd5 {[%emt 0:00:05]} 13. Qb3 {[%emt 0:01:59]} Nb6 {[%emt 0:08:31]} 14. Bb5+ {[%emt 0:02:37]} Kf8 {[%emt 0:00:15]} 15. O-O {[%emt 0:06:34]} e6 {[%emt 0:03:59]} 16. Bd2 {[%emt 0:03:11]} Nc8 {[%emt 0:01:17]} 17. Rac1 {[%emt 0:02:57]} Kg8 {[%emt 0:00:36]} 18. Rc2 {[%emt 0:06:24]} Ncd6 {[%emt 0:01:45]} 19. Bd3 {[%emt 0:02:59]} Rc8 {[%emt 0:01:58]} 20. Rxc8 {[%emt 0:03:18]} Qxc8 {[%emt 0:00:35]} 21. Rc1 {[%emt 0:00:12]} Qb8 {[%emt 0:00:19]} 22. Qc2 {[%emt 0:04:42]} Bf6 {[%emt 0:00:29]} 23. Ne5 {[%emt 0:02:22]} Bd8 {[%emt 0:14:46]} 24. Kf2 {[%emt 0:02:53]} Kg7 {[%emt 0:01:00]} 25. Nd7 {[%emt 0:03:21]} Qa8 {[%emt 0:00:10]} 26. Bb4 {[%emt 0:00:38]} Bh4+ {[%emt 0:03:58]} 27. g3 {[%emt 0:00:34]} Rc8 {[%emt 0:02:14]} 28. Qd2 {[%emt 0:01:42]} Rxc1 {[%emt 0:01:07]} 29. Qxc1 {[%emt 0:00:02]} Qd8 {[%emt 0:01:26]} 30. Ne5 {[%emt 0:00:53]} Be7 {[%emt 0:00:45]} 31. Bc5 {[%emt 0:02:04]} a6 {[%emt 0:03:36]} 32. Qc2 {[%emt 0:00:41]} Qc7 {[%emt 0:00:28]} 33. Ba3 {[%emt 0:02:12]} Qxc2+ 34. Bxc2 {[%emt 0:00:01]} Nc8 {[%emt 0:01:53]} 35. Bxf5 {[%emt 0:04:26]} gxf5 {[%emt 0:00:02]} 36. Bxe7 {[%emt 0:02:12]} Nxe7 {[%emt 0:00:01]} 37. Nd7 {[%emt 0:00:38]} Nc8 {[%emt 0:00:07]} 38. Nc5 {[%emt 0:01:10]} 1/2-1/2

[Event "GER-chW 2019"]
[Site "Magdeburg"]
[Date "2019.06.01"]
[Round "9.7"]
[White "Kunze, Kerstin"]
[Black "Bashylina, Luisa"]
[Result "0-1"]
[ECO "A00"]
[WhiteElo "2066"]
[BlackElo "1812"]
[Annotator "NA"]
[PlyCount "62"]
[EventDate "2019.05.26"]
[EventType "tourn"]
[EventCountry "GER"]
[SourceTitle "playchess.com"]
[Source "ChessBase"]
[SourceQuality "1"]
[TimeControl "40/5400+30:1800+30"]

1. g3 {[%emt 0:00:00]} d6 {[%emt 0:02:36]} 2. Bg2 {[%emt 0:02:46]} g6 {[%emt 0:02:09]} 3. d4 {[%emt 0:02:18]} Bg7 {[%emt 0:00:14]} 4. e4 {[%emt 0:00:46]} Nf6 {[%emt 0:00:42]} 5. Nc3 {[%emt 0:05:05]} Nfd7 {[%emt 0:07:11]} 6. Be3 {[%emt 0:03:03]} e5 {[%emt 0:04:46]} 7. h4 {[%emt 0:08:50]} h5 {[%emt 0:06:49]} 8. Nge2 $14 {[%emt 0:11:05]} Nc6 {[%emt 0:03:19]} 9. d5 {[%emt 0:15:49]} Ne7 {[%emt 0:04:23]} 10. Qd2 {[%emt 0:00:36]} Nb6 {[%emt 0:03:10]} 11. b3 {[%emt 0:02:34]} Ng8 {[%emt 0:17:28]} 12. Nb5 {[%emt 0:17:24]} Bh6 {[%emt 0:15:10]} 13. Qc3 {[%emt 0:00:45]} Bxe3 {[%emt 0:13:38]} 14. fxe3 {[%emt 0:00:27]} Kd7 {[%emt 0:02:33]} 15. a4 {[%emt 0:21:50]} a6 {[%emt 0:03:19]} 16. Bh3+ {[%emt 0:02:19]} Ke7 {[%emt 0:00:23]} 17. Nxc7 {[%emt 0:00:23]} Rb8 {[%emt 0:00:46]} 18. a5 {[%emt 0:00:03]} Bxh3 {[%emt 0:01:19]} 19. axb6 {[%emt 0:00:08]} Bg2 {[%emt 0:00:45]} 20. Rh2 {[%emt 0:00:11]} Bxe4 {[%emt 0:00:17]} 21. Qc4 {[%emt 0:00:05]} Bf3 {[%emt 0:01:30]} 22. Nc3 {[%emt 0:00:51]} Nf6 {[%emt 0:01:32]} 23. Rf2 {[%emt 0:00:54]} Bg4 {[%emt 0:01:52]} 24. Kd2 {[%emt 0:00:40]} Nd7 {[%emt 0:01:00]} 25. Qb4 {[%emt 0:01:35]} Rc8 {[%emt 0:01:44]} 26. Ne4 {[%emt 0:00:16]} Nxb6 {[%emt 0:00:34]} 27. Qxb6 {[%emt 0:00:25]} Qxc7 {[%emt 0:00:21]} 28. Qxc7+ {[%emt 0:01:15]} Rxc7 {[%emt 0:00:05]} 29. Nf6 {[%emt 0:00:14]} Bf5 {[%emt 0:01:16]} 30. c4 {[%emt 0:00:12]} e4 {[%emt 0:00:50]} 31. Raf1 {[%emt 0:00:33]} Kxf6 {[%emt 0:00:11]} 0-1

[Event "GER-chW 2019"]
[Site "Magdeburg"]
[Date "2019.06.01"]
[Round "9.8"]
[White "Just, Anita"]
[Black "Ley, Sabrina"]
[Result "0-1"]
[ECO "B92"]
[WhiteElo "1866"]
[BlackElo "1870"]
[Annotator "NA"]
[PlyCount "136"]
[EventDate "2019.05.26"]
[EventType "tourn"]
[EventCountry "GER"]
[SourceTitle "playchess.com"]
[Source "ChessBase"]
[SourceQuality "1"]
[TimeControl "40/5400+30:1800+30"]

1. e4 {[%emt 0:00:00]} c5 {[%emt 0:00:00]} 2. Nf3 {[%emt 0:00:00]} d6 {[%emt 0:00:00]} 3. d4 {[%emt 0:00:00]} cxd4 {[%emt 0:00:00]} 4. Nxd4 {[%emt 0:00:00]} Nf6 {[%emt 0:00:00]} 5. Nc3 $11 {[%emt 0:00:00]} a6 {[%emt 0:00:00]} 6. Be2 {[%emt 0:00:28]} e5 {[%emt 0:00:05]} 7. Nb3 {[%emt 0:00:10]} Be6 {[%emt 0:00:06]} 8. O-O {[%emt 0:01:33]} Nbd7 {[%emt 0:00:09]} 9. f4 {[%emt 0:12:20]} exf4 {[%emt 0:00:12]} 10. Bxf4 {[%emt 0:00:27]} Ne5 {[%emt 0:00:33]} 11. Qd4 {[%emt 0:08:51]} Qc7 {[%emt 0:02:17]} 12. Nd5 {[%emt 0:09:13]} Bxd5 {[%emt 0:14:21]} 13. exd5 {[%emt 0:00:24]} Be7 {[%emt 0:05:46]} 14. Rae1 {[%emt 0:07:07]} O-O {[%emt 0:08:55]} 15. c4 {[%emt 0:04:18]} Nfd7 {[%emt 0:05:03]} 16. Qf2 {[%emt 0:02:07]} Bf6 {[%emt 0:04:32]} 17. Nd2 {[%emt 0:03:27]} Nc5 {[%emt 0:11:15]} 18. Qg3 {[%emt 0:03:09]} Qd8 {[%emt 0:04:33]} 19. Bh6 {[%emt 0:21:55]} Kh8 {[%emt 0:03:57]} 20. Rxf6 {[%emt 0:02:29]} Qxf6 {[%emt 0:02:19]} 21. Be3 {[%emt 0:02:28]} Qg6 {[%emt 0:09:42]} 22. Qh3 {[%emt 0:02:36]} Ncd7 {[%emt 0:08:42]} 23. Bh5 {[%emt 0:03:57]} Qd3 {[%emt 0:03:37]} 24. Be2 {[%emt 0:02:17]} Qc2 {[%emt 0:01:57]} 25. Bd1 {[%emt 0:02:00]} Qxb2 {[%emt 0:01:49]} 26. Ne4 {[%emt 0:03:42]} Qb4 {[%emt 0:01:45]} 27. Rf1 {[%emt 0:02:21]} Qxc4 {[%emt 0:04:28]} 28. Nxd6 {[%emt 0:00:57]} Qxd5 {[%emt 0:00:38]} 29. Bc2 {[%emt 0:02:06]} g6 {[%emt 0:03:07]} 30. Rd1 {[%emt 0:00:15]} Qe6 {[%emt 0:01:17]} 31. Qg3 {[%emt 0:00:36]} Qg4 {[%emt 0:01:21]} 32. Qxg4 {[%emt 0:00:43]} Nxg4 {[%emt 0:00:05]} 33. Bd4+ {[%emt 0:00:12]} f6 {[%emt 0:01:06]} 34. Bb3 {[%emt 0:01:06]} Nge5 {[%emt 0:01:05]} 35. Nxb7 {[%emt 0:00:20]} Rac8 {[%emt 0:01:25]} 36. Nd6 {[%emt 0:00:26]} Rc6 {[%emt 0:00:16]} 37. Ne4 {[%emt 0:00:12]} Kg7 {[%emt 0:00:47]} 38. h3 {[%emt 0:02:25]} Rfc8 {[%emt 0:00:22]} 39. Bb2 {[%emt 0:00:15]} Nc5 {[%emt 0:00:58]} 40. Nxc5 {[%emt 0:00:29]} Rxc5 {[%emt 0:00:08]} 41. Ba3 {[%emt 0:30:23]} R5c7 {[%emt 0:30:53]} 42. Rd6 {[%emt 0:02:01]} Rc6 {[%emt 0:00:00]} 43. Rd5 {[%emt 0:00:00]} Nc4 {[%emt 0:00:00]} 44. Rd7+ {[%emt 0:00:00]} Kh8 {[%emt 0:00:00]} 45. Be7 {[%emt 0:00:00]} Kg8 {[%emt 0:00:00]} 46. Bd6 {[%emt 0:00:00]} a5 {[%emt 0:00:00]} 47. Bf4 {[%emt 0:00:00]} g5 {[%emt 0:00:00]} 48. Bg3 {[%emt 0:00:00]} Kh8 {[%emt 0:00:00]} 49. Ra7 {[%emt 0:00:00]} Nd2 {[%emt 0:00:00]} 50. Be1 {[%emt 0:00:00]} Rc1 {[%emt 0:00:00]} 51. Re7 {[%emt 0:00:00]} Nxb3 {[%emt 0:00:00]} 52. axb3 {[%emt 0:00:00]} Rb1 {[%emt 0:01:08]} 53. Kh2 {[%emt 0:00:00]} Rxb3 {[%emt 0:01:47]} 54. Bxa5 {[%emt 0:00:00]} Rb2 {[%emt 0:00:17]} 55. Rc7 {[%emt 0:00:15]} Rxc7 {[%emt 0:00:16]} 56. Bxc7 {[%emt 0:00:01]} Kg7 {[%emt 0:00:20]} 57. Ba5 {[%emt 0:00:18]} Kg6 {[%emt 0:00:09]} 58. Bc3 {[%emt 0:00:09]} Rc2 {[%emt 0:00:15]} 59. Bd4 {[%emt 0:00:08]} f5 {[%emt 0:00:31]} 60. Kg1 {[%emt 0:02:12]} h5 {[%emt 0:00:55]} 61. Be5 {[%emt 0:00:45]} f4 {[%emt 0:01:27]} 62. Bd6 {[%emt 0:00:49]} Kf5 {[%emt 0:00:27]} 63. Kf1 {[%emt 0:03:27]} g4 {[%emt 0:01:02]} 64. hxg4+ {[%emt 0:00:55]} hxg4 {[%emt 0:01:37]} 65. g3 {[%emt 0:00:50]} fxg3 {[%emt 0:00:42]} 66. Bxg3 {[%emt 0:00:06]} Ke4 {[%emt 0:00:10]} 67. Bd6 {[%emt 0:02:35]} Kf3 {[%emt 0:00:10]} 68. Kg1 {[%emt 0:00:15]} g3 {[%emt 0:00:35]} 0-1

[Event "GER-chW 2019"]
[Site "Magdeburg"]
[Date "2019.06.01"]
[Round "9.9"]
[White "Lowke, Kathrin"]
[Black "Liu, Sijia Anna"]
[Result "0-1"]
[ECO "B43"]
[WhiteElo "1887"]
[BlackElo "1689"]
[Annotator "NA"]
[PlyCount "100"]
[EventDate "2019.05.26"]
[EventType "tourn"]
[EventCountry "GER"]
[SourceTitle "playchess.com"]
[Source "ChessBase"]
[SourceQuality "1"]
[TimeControl "40/5400+30:1800+30"]

1. e4 {[%emt 0:00:00]} c5 {[%emt 0:00:00]} 2. Nf3 {[%emt 0:00:00]} e6 {[%emt 0:00:03]} 3. d4 {[%emt 0:00:00]} cxd4 {[%emt 0:00:06]} 4. Nxd4 {[%emt 0:00:00]} a6 {[%emt 0:00:20]} 5. Nc3 {[%emt 0:00:00]} Qc7 {[%emt 0:00:36]} 6. a3 $11 {[%emt 0:05:32]} b5 {[%emt 0:01:24]} 7. Be2 {[%emt 0:00:36]} Bb7 {[%emt 0:02:04]} 8. O-O {[%emt 0:04:20]} b4 {[%emt 0:04:54]} 9. axb4 {[%emt 0:03:45]} Bxb4 {[%emt 0:01:00]} 10. Qd3 {[%emt 0:02:39]} Nf6 {[%emt 0:02:08]} 11. Bf3 {[%emt 0:01:26]} O-O {[%emt 0:09:06]} 12. e5 {[%emt 0:14:41]} Nd5 {[%emt 0:08:20]} 13. Nxd5 {[%emt 0:01:14]} Bxd5 {[%emt 0:02:09]} 14. Bxd5 {[%emt 0:00:18]} exd5 {[%emt 0:00:10]} 15. Qg3 {[%emt 0:01:16]} Nc6 {[%emt 0:05:46]} 16. c3 {[%emt 0:05:54]} Bc5 {[%emt 0:05:32]} 17. Nxc6 {[%emt 0:05:44]} dxc6 {[%emt 0:02:09]} 18. Ra4 {[%emt 0:03:26]} Rfe8 {[%emt 0:03:25]} 19. Rg4 {[%emt 0:02:12]} Qxe5 {[%emt 0:02:44]} 20. Bf4 {[%emt 0:00:31]} Qf6 {[%emt 0:00:46]} 21. Rg5 {[%emt 0:06:17]} Bf8 {[%emt 0:12:40]} 22. h4 {[%emt 0:07:08]} Re4 {[%emt 0:05:29]} 23. Be3 {[%emt 0:02:47]} Qe6 {[%emt 0:05:54]} 24. Bf4 {[%emt 0:12:47]} Re8 {[%emt 0:05:24]} 25. h5 {[%emt 0:06:19]} h6 {[%emt 0:04:26]} 26. Rg4 {[%emt 0:00:26]} Qf6 {[%emt 0:02:11]} 27. f3 {[%emt 0:02:30]} Re2 {[%emt 0:01:49]} 28. Ra1 {[%emt 0:05:42]} c5 {[%emt 0:03:13]} 29. b3 {[%emt 0:00:45]} R8e6 {[%emt 0:01:40]} 30. Rd1 {[%emt 0:00:57]} d4 {[%emt 0:01:27]} 31. cxd4 {[%emt 0:00:14]} cxd4 {[%emt 0:00:14]} 32. Rc1 {[%emt 0:03:18]} d3 {[%emt 0:02:44]} 33. Rd1 {[%emt 0:02:23]} Qd4+ {[%emt 0:02:02]} 34. Kh2 {[%emt 0:00:15]} Qd5 {[%emt 0:01:28]} 35. b4 {[%emt 0:00:43]} Qxh5+ {[%emt 0:02:11]} 36. Rh4 {[%emt 0:00:02]} Qf5 {[%emt 0:00:35]} 37. Bxh6 {[%emt 0:00:35]} Qg6 {[%emt 0:00:44]} 38. Bf4 {[%emt 0:01:14]} Qxg3+ {[%emt 0:00:25]} 39. Kxg3 {[%emt 0:00:13]} Bxb4 {[%emt 0:00:29]} 40. Kh3 {[%emt 0:01:16]} d2 {[%emt 0:01:24]} 41. Bg5 {[%emt 0:08:53]} Re1 {[%emt 0:05:49]} 42. Bxd2 {[%emt 0:04:23]} Rxd1 {[%emt 0:00:27]} 43. Bxb4 {[%emt 0:00:06]} Rh1+ {[%emt 0:00:42]} 44. Kg3 {[%emt 0:00:04]} Rxh4 {[%emt 0:01:28]} 45. Kxh4 {[%emt 0:00:04]} Kh7 {[%emt 0:01:15]} 46. g4 {[%emt 0:00:17]} Kg6 {[%emt 0:01:24]} 47. Kg3 {[%emt 0:00:19]} f5 {[%emt 0:01:13]} 48. Bc3 {[%emt 0:01:00]} fxg4 {[%emt 0:01:54]} 49. Kxg4 {[%emt 0:00:06]} Rb6 {[%emt 0:00:50]} 50. f4 {[%emt 0:00:15]} Rb5 {[%emt 0:00:24]} 0-1